[Event "31st Kavala Open-A 2022"]
[Site "Kavala"]
[Date "2022.07.29"]
[Round "5.15"]
[White "Rahmanidis, Petros"]
[Black "Santiago, Yago De Moura"]
[Result "1-0"]
[ECO "B08"]
[WhiteElo "2191"]
[BlackElo "2513"]
[Annotator "TA"]
[PlyCount "121"]
[EventDate "2022.07.27"]
[EventType "swiss"]
[EventCountry "GRE"]
[SourceTitle "playchess.com"]
[Source "ChessBase"]
[SourceQuality "1"]
[TimeControl "40/5400+30:1800+30"]

{[%evp 19,121,7,18,13,14,22,12,12,11,0,12,-7,0,0,10,0,4,-24,-21,-36,0,0,36,33,27,30,39,33,28,25,26,24,41,39,39,28,31,33,32,34,32,22,23,24,62,65,125,122,173,202,186,185,216,208,220,196,217,216,260,243,426,426,426,426,426,426,456,456,456,456,456,456,456,456,456,456,449,388,456,456,456,449,449,449,442,420,437,398,398,398,395,351,398,398,391,384,381,319,12829,4895,802,411,654,623]} 1. e4 {[%emt 0:04:06]} d6 {[%emt 0:01:37]} 2. d4 {[%emt 0:02:03]} Nf6 {[%emt 0:00:11]} 3. Nc3 {[%emt 0:08:15]} g6 {[%emt 0:00:17]} 4. Nf3 {[%emt 0:01:13]} Bg7 {[%emt 0:00:12]} 5. Be2 {[%emt 0:00:22]} O-O {[%emt 0:00:37]} 6. O-O {[%emt 0:00:02]} Bg4 {[%emt 0:01:10]} 7. h3 {[%emt 0:02:02]} Bxf3 {[%emt 0:00:31]} 8. Bxf3 {[%emt 0:00:02]} Nc6 {[%emt 0:01:20]} 9. d5 {[%emt 0:05:44]} Ne5 {[%emt 0:01:05][%cal Bc6e5,Be5d7,Bd7b6,Bb6c4][%mdl 32]} 10. Be2 {[%emt 0:00:26]} c6 {[%emt 0:00:08]} 11. f4 {[%emt 0:07:21] B08: Pirc Defence: Classical System.} Ned7 {[%emt 0:00:48]} 12. Bf3 {[%emt 0:04:45] [#]} Rc8 $146 {[%emt 0:08:12]} ({Predecessor:} 12... Qc7 13. Be3 Rfc8 14. Qd2 cxd5 15. exd5 Nb6 16. Rae1 Nc4 17. Qc1 Nxe3 18. Qxe3 Re8 {0-1 (50) Eswaran,A (2244)-Linares Napoles,O (2255) Chess.com INT 2021}) 13. Kh1 {[%emt 0:03:58] The position is equal.} cxd5 {[%emt 0:06:27]} 14. exd5 {[%emt 0:01:57]} Nb6 {[%emt 0:00:12]} 15. Re1 {[%emt 0:05:15]} a6 {[%emt 0:03:15]} 16. a4 {[%emt 0:03:26]} Re8 {[%emt 0:03:52]} 17. Re2 {[%emt 0:05:10]} Nc4 {[%emt 0:09:28]} 18. Rb1 {[%emt 0:06:05]} Qa5 {[%emt 0:13:27]} 19. Qe1 {[%emt 0:05:02]} b5 {[%emt 0:00:28]} 20. b3 {[%emt 0:02:54]} ({Don't play} 20. Rxe7 b4 21. b3 Rxe7 22. Qxe7 Re8 $19) 20... Nd7 {[%emt 0:05:19]} 21. Na2 {[%emt 0:10:13]} ({Not} 21. Rxe7 $2 Kf8 $1 22. Re2 (22. Rxe8+ $2 Rxe8 23. Qf2 Qxc3 $19) 22... Bxc3 $19) 21... Qxe1+ {[%emt 0:00:54]} 22. Rxe1 {[%emt 0:01:26]} Na5 {[%emt 0:03:59]} 23. axb5 {[%emt 0:02:46]} axb5 {[%emt 0:00:09]} 24. Re2 {[%emt 0:02:30]} e5 {[%emt 0:00:44]} 25. dxe6 {[%emt 0:04:10]} Rxe6 {[%emt 0:00:07]} 26. Nb4 {[%emt 0:02:36]} Rxe2 {[%emt 0:06:27]} 27. Bxe2 {[%emt 0:00:02]} Re8 {[%emt 0:00:11]} 28. Bxb5 {[%emt 0:01:07]} Re1+ {[%emt 0:00:06]} 29. Kh2 {[%emt 0:00:03]} Nc5 {[%emt 0:00:16]} 30. Nd3 {[%emt 0:05:17]} Nxd3 {[%emt 0:00:06]} 31. Bxd3 {[%emt 0:00:10]} Bd4 {[%emt 0:00:10]} 32. b4 $1 {[%emt 0:01:34]} Nb7 {[%emt 0:00:07] White stays focused until the end.} (32... Nc6 $14) 33. c4 $16 {[%emt 0:01:00]} Bc3 {[%emt 0:06:14] Against Bd2} (33... Rd1 $16 {was called for.} 34. Bc2 Rf1) 34. Ba3 $18 {[%emt 0:02:01] Rxe1 is the strong threat.} Re3 {[%emt 0:00:28] [#]} 35. Rd1 {[%emt 0:00:46]} Be1 {[%emt 0:00:14]} 36. Bc1 {[%emt 0:01:00]} Bg3+ {[%emt 0:00:42]} 37. Kg1 {[%emt 0:00:21]} Re8 {[%emt 0:00:04]} 38. Kf1 {[%emt 0:01:02]} h5 {[%emt 0:00:22]} 39. Be2 {[%emt 0:00:55]} Re4 $2 {[%emt 0:00:08]} (39... Nd8 40. f5 Kg7) 40. Bf3 {[%emt 0:00:00]} Rxc4 {[%emt 0:00:00]} 41. Bxb7 {[%emt 0:01:45]} Rxb4 {[%emt 0:00:10]} 42. Bf3 {[%emt 0:01:35]} Bxf4 {[%emt 0:00:06]} 43. Bxf4 {[%emt 0:00:54]} Rxf4 {[%emt 0:00:03]} 44. Rxd6 {[%emt 0:00:06][%mdl 4096] Endgame KRB-KR} Kg7 {[%emt 0:03:49]} 45. Kf2 {[%emt 0:01:16]} Ra4 {[%emt 0:00:07]} 46. Ke3 {[%emt 0:01:07]} Ra7 {[%emt 0:00:06]} 47. Rb6 {[%emt 0:02:50]} Ra3+ {[%emt 0:00:09]} 48. Kf4 {[%emt 0:00:52]} Ra4+ {[%emt 0:00:02]} 49. Ke5 {[%emt 0:00:34]} Ra5+ {[%emt 0:00:11]} 50. Bd5 {[%emt 0:00:30] Hoping for Rb7.} Ra1 {[%emt 0:00:03]} 51. Rb7 {[%emt 0:01:12]} Rf1 {[%emt 0:00:08]} 52. Kd6 {[%emt 0:03:42]} Kf8 {[%emt 0:00:02]} 53. Rc7 {[%emt 0:02:06]} Rf6+ {[%emt 0:00:07]} 54. Ke5 {[%emt 0:00:15]} Rf1 {[%emt 0:00:03]} 55. Rc3 {[%emt 0:01:04] Strongly threatening Rf3.} Kg7 {[%emt 0:00:20]} 56. Rf3 {[%emt 0:00:35] Against Rf5+} Re1+ {[%emt 0:00:03]} 57. Kd6 {[%emt 0:00:37]} f5 {[%emt 0:00:01]} 58. Rc3 {[%emt 0:02:08]} g5 $2 {[%emt 0:00:07]} (58... Kh6 59. h4 g5) 59. Rc7+ {[%emt 0:01:10]} Kf6 {[%emt 0:00:06]} 60. Rf7+ {[%emt 0:00:34]} Kg6 {[%emt 0:00:02]} 61. Re7 {[%emt 0:00:33] Weighted Error Value: White=0.07 (flawless) /Black=0.16 (very precise)} 1-0

[Event "31st Kavala Open-A 2022"]
[Site "Kavala"]
[Date "2022.07.29"]
[Round "5.16"]
[White "Tsarsitalidis, Konstantinos"]
[Black "Trimitzios, Petros"]
[Result "0-1"]
[ECO "C54"]
[WhiteElo "2059"]
[BlackElo "2369"]
[Annotator "TA"]
[PlyCount "124"]
[EventDate "2022.07.27"]
[EventType "swiss"]
[EventCountry "GRE"]
[SourceTitle "playchess.com"]
[Source "ChessBase"]
[SourceQuality "1"]
[TimeControl "40/5400+30:1800+30"]

{[%evp 12,124,30,17,20,0,4,0,0,0,0,-25,0,0,0,0,0,0,0,-20,-16,-15,-18,-43,-43,-48,-28,-50,-15,-15,-13,-30,0,-41,-44,-45,-54,-56,-33,-32,-32,-32,-37,-122,0,0,0,-112,-107,-79,-33,-83,-67,-100,-105,-143,-69,-70,-71,-75,-69,-131,-110,-138,-86,-100,-83,-90,-108,-164,-157,-157,-138,-145,-137,-160,-70,-69,-71,-58,-19,-69,-56,-72,-11,-9,-12,-12,-12,-32,-32,-31,-19,-19,0,0,0,0,0,0,0,0,0,0,0,-8,0,0,0,0,0,-284,-243,-29989,-29990]} 1. e4 {[%emt 0:01:03]} e5 {[%emt 0:00:28]} 2. Nf3 {[%emt 0:00:05]} Nc6 {[%emt 0:00:07]} 3. Bc4 {[%emt 0:00:03]} Bc5 {[%emt 0:00:33]} 4. c3 {[%emt 0:00:04]} d6 {[%emt 0:01:11]} 5. O-O {[%emt 0:00:06]} Nf6 {[%emt 0:00:09]} 6. d3 {[%emt 0:00:19]} a6 {[%emt 0:00:07]} 7. Bb3 {[%emt 0:00:38]} h6 {[%emt 0:00:26] C54: Giuoco Piano: 4 c3 Nf6, main lines with 5 d4 and 5 d3.} 8. d4 {[%emt 0:19:56]} Ba7 {[%emt 0:06:11]} 9. dxe5 {[%emt 0:02:45]} (9. Be3 {looks sharper.} Ng4 10. Nbd2 O-O 11. a3) 9... Nxe5 {[%emt 0:00:21] The position is equal.} 10. Nxe5 {[%emt 0:00:25]} dxe5 {[%emt 0:00:03]} 11. Qxd8+ {[%emt 0:01:11]} Kxd8 {[%emt 0:00:03][%cal Be8d8,Bd8e7,Be7e6][%mdl 32]} 12. Nd2 {[%emt 0:03:00]} Ke7 {[%emt 0:03:32]} 13. Nc4 {[%emt 0:03:47]} Be6 {[%emt 0:07:11]} 14. Nxe5 {[%emt 0:02:01]} Nxe4 {[%emt 0:02:49] [#]} 15. Bxe6 $146 {[%emt 0:03:04]} ({Predecessor:} 15. Bc2 Nd6 16. Re1 Rhe8 17. Bf4 g5 18. Be3 Bxe3 19. Rxe3 {½-½ (19) Lamorelle,Y (2225)-Renaze,L (2331) France 2007}) 15... Kxe6 {[%emt 0:00:10]} 16. Nf3 {[%emt 0:00:05]} g5 {[%emt 0:07:33]} (16... Rae8 {feels hotter.} 17. Bf4 Bb6 18. Rad1 g5) 17. Nd4+ {[%emt 0:09:06]} Bxd4 {[%emt 0:04:34]} 18. cxd4 {[%emt 0:00:02]} Nf6 {[%emt 0:03:05]} 19. Bd2 {[%emt 0:06:41]} Nd5 {[%emt 0:01:16]} 20. Rae1+ {[%emt 0:01:39]} Kd6 {[%emt 0:02:31]} 21. f4 {[%emt 0:06:58]} g4 {[%emt 0:05:49]} 22. f5 {[%emt 0:01:38]} h5 {[%emt 0:03:23]} 23. Re4 {[%emt 0:02:48]} Rae8 {[%emt 0:00:00]} 24. Rfe1 {[%emt 0:01:31]} Kd7 {[%emt 0:02:45]} 25. Kf2 {[%emt 0:17:15]} Reg8 {[%emt 0:12:27]} 26. Re5 {[%emt 0:01:35]} c6 {[%emt 0:00:14]} 27. Kg1 {[%emt 0:00:46]} (27. Ke2 $15) 27... Re8 {[%emt 0:02:40]} (27... g3 $17 28. h4 f6) 28. Kf2 $11 {[%emt 0:00:02]} Reg8 {[%emt 0:01:10]} (28... Ref8 $11) 29. Kg1 $17 {[%emt 0:00:01]} h4 {[%emt 0:00:09]} 30. f6 {[%emt 0:09:55]} Kd6 {[%emt 0:05:13]} (30... Rg6 $17) 31. b3 {[%emt 0:01:01]} ({White should play} 31. R1e4 $15) 31... Rg6 {[%emt 0:00:13]} 32. Rf1 {[%emt 0:01:14]} Kd7 {[%emt 0:00:14]} 33. Re4 {[%emt 0:01:52]} Re8 {[%emt 0:00:39]} (33... Nxf6 $6 34. Ref4 Nd5 35. Rxf7+ Kc8 36. Bf4 $11) (33... Rxf6 $6 34. Rxg4 Rxf1+ 35. Kxf1 $11) (33... h3 $17 34. g3 Re8) 34. Rxe8 $1 $15 {[%emt 0:00:59]} Kxe8 {[%emt 0:00:03][%mdl 4096] Endgame KRB-KRN} 35. Rf5 {[%emt 0:00:54]} h3 {[%emt 0:00:18]} 36. Rh5 {[%emt 0:00:53]} ({Better is} 36. Bg5 $15) 36... hxg2 {[%emt 0:01:45]} ({Worse is} 36... Nxf6 37. Rh8+ Kd7 38. Rb8 $15) ({Inferior is} 36... Rxf6 37. gxh3 gxh3 38. Rh8+ Kd7 39. Rxh3 $15) 37. Kxg2 {[%emt 0:00:02]} Nxf6 {[%emt 0:01:34]} (37... Kd7 $142 38. Rh7 Ke6) 38. Rh8+ $17 {[%emt 0:00:17]} Kd7 {[%emt 0:01:00]} 39. Rb8 {[%emt 0:00:27]} b5 {[%emt 0:00:21]} 40. Rf8 {[%emt 0:00:00]} (40. Rb7+ $17 {was worth a try.} Ke6 41. Rc7) 40... Ke6 $19 {[%emt 0:00:00]} 41. Ra8 {[%emt 0:02:00]} Nd5 {[%emt 0:11:57]} 42. Rxa6 {[%emt 0:01:10]} Kf5 {[%emt 0:00:20]} 43. Ra7 {[%emt 0:03:16] [#]} f6 {[%emt 0:01:40]} ({Black should try} 43... Rf6 $1 $17 {Hoping for ...Ke4.} 44. Ra8 Re6) 44. Ra6 $15 {[%emt 0:00:38]} Rg8 {[%emt 0:00:14]} 45. Rxc6 {[%emt 0:01:07]} Ra8 {[%emt 0:00:02]} 46. Rc2 {[%emt 0:04:32]} (46. a4 $11) 46... Ke4 {[%emt 0:00:07]} 47. Bc1 {[%emt 0:02:35]} f5 {[%emt 0:01:00] Black is more active.} ({Reject} 47... Kxd4 48. Kg3 $11) (47... Nb4 $17 48. Re2+ Kd3) 48. Re2+ $11 {[%emt 0:00:57]} Kxd4 {[%emt 0:00:19] White must now prevent ...f4.} 49. Rd2+ {[%emt 0:02:30]} Ke5 {[%emt 0:01:25] next ...f4 is good for Black.} 50. Re2+ {[%emt 0:00:34]} Kf6 {[%emt 0:00:15]} 51. Bb2+ {[%emt 0:15:05]} Kg6 {[%emt 0:01:36]} 52. Re6+ $1 {[%emt 0:00:36]} Kf7 {[%emt 0:00:11]} 53. Re5 {[%emt 0:00:07][%csl LRd5,LRf5]} Ne7 {[%emt 0:03:11]} 54. Kg3 {[%emt 0:03:38]} Rxa2 {[%emt 0:00:50]} 55. Bc3 {[%emt 0:00:24]} Ra6 {[%emt 0:02:36] ...Rd6 is the strong threat.} 56. Rxb5 {[%emt 0:00:48]} Ke6 {[%emt 0:02:37]} 57. Re5+ {[%emt 0:01:20]} Kd6 {[%emt 0:00:42]} 58. Re2 {[%emt 0:00:53] And now Bb4+ would win.} Nd5 {[%emt 0:00:27] Inhibits Bb4+.} 59. Be5+ {[%emt 0:00:19]} Kd7 {[%emt 0:00:16]} 60. Kh4 {[%emt 0:00:49]} Rg6 {[%emt 0:00:59]} 61. Bd4 $2 {[%emt 0:00:53][%mdl 8192]} (61. Ra2 $11 {and White is okay.}) 61... g3 $1 $19 {[%emt 0:00:53]} 62. Bg1 {[%emt 0:00:25] [#]} (62. hxg3 $19 Rg4+ 63. Kh5 Rxd4 64. Kg5) 62... Rg4+ {[%emt 0:00:04] Weighted Error Value: White=0.27 (precise) /Black=0.14 (very precise)} 0-1

[Event "31st Kavala Open-A 2022"]
[Site "Kavala"]
[Date "2022.07.30"]
[Round "6.1"]
[White "Kilic, Eray"]
[Black "Kourkoulos-Arditis, Stamatis"]
[Result "1/2-1/2"]
[ECO "E62"]
[WhiteElo "2422"]
[BlackElo "2535"]
[Annotator "TA"]
[PlyCount "58"]
[EventDate "2022.07.27"]
[EventType "swiss"]
[EventCountry "GRE"]
[SourceTitle "playchess.com"]
[Source "ChessBase"]
[SourceQuality "1"]
[TimeControl "40/5400+30:1800+30"]

{[%evp 18,58,22,15,70,28,71,63,56,57,57,53,54,27,41,0,0,9,4,8,33,0,0,-13,0,0,0,0,0,0,2,-16,0,0,0,0,49,60,64,0,0,0,0]} 1. d4 {[%emt 0:00:02]} Nf6 {[%emt 0:00:04]} 2. c4 {[%emt 0:00:06]} g6 {[%emt 0:00:24]} 3. Nf3 {[%emt 0:00:05]} Bg7 {[%emt 0:00:04]} 4. g3 {[%emt 0:00:05]} O-O {[%emt 0:00:26]} 5. Bg2 {[%emt 0:00:07]} d6 {[%emt 0:00:04]} 6. O-O {[%emt 0:00:05]} c6 {[%emt 0:01:34]} 7. Nc3 {[%emt 0:00:10]} Bf5 {[%emt 0:00:05]} 8. Re1 {[%emt 0:00:36]} Ne4 {[%emt 0:00:13]} 9. Qb3 {[%emt 0:00:07] 9.Qb3 scores better than 9.Nxe4.} Nxc3 {[%emt 0:04:17]} 10. bxc3 {[%emt 0:00:06]} Be4 {[%emt 0:11:44] [#] E62: King's Indian: Fianchetto: 6...c6 and Panno Variation (6...Nc6) without ...a6.} (10... Bc8 $11) 11. Bh3 $146 {[%emt 0:13:54]} ({Predecessor:} 11. Qxb7 Nd7 12. Bh3 Nb6 13. Bg5 f6 14. Nd2 Bf5 15. Bxf5 gxf5 16. Be3 Rc8 17. Qxa7 Rf7 18. Reb1 {1-0 (29) Rogozenco,T (2027)-Heinatz,M (2016) Germany 2017}) 11... Bxf3 {[%emt 0:25:14]} 12. exf3 {[%emt 0:00:03]} Qc7 {[%emt 0:00:07] White is slightly better.} 13. c5 {[%emt 0:15:50]} dxc5 {[%emt 0:05:12]} 14. Bf4 {[%emt 0:01:04]} Qb6 {[%emt 0:00:05]} 15. Qa3 {[%emt 0:00:26]} e6 {[%emt 0:02:21]} 16. dxc5 {[%emt 0:14:33]} Qa6 {[%emt 0:00:46]} 17. Qb3 {[%emt 0:01:08][%cal Oh3e6] [#] And now Bxe6! would win.} Nd7 {[%emt 0:04:24]} 18. Bd6 {[%emt 0:00:30]} Qa5 {[%emt 0:00:06][%csl LRc3,LRc5]} (18... Rfd8 {is interesting.} 19. Rad1 b6 20. cxb6 Nxb6 21. Bf1 Qa5) 19. Bxf8 {[%emt 0:02:41]} ({But not} 19. Qxb7 Nxc5 20. Qb4 (20. Qxc6 $2 Rac8 $19) 20... Qxb4 21. cxb4 Nd3 22. Bxf8 Kxf8 $15) 19... Rxf8 {[%emt 0:01:07]} 20. Qxb7 {[%emt 0:08:54]} Bxc3 {[%emt 0:09:44]} 21. Qxd7 {[%emt 0:06:05] [#] Hoping for Rf1.} Bxe1 {[%emt 0:00:05]} 22. Rd1 {[%emt 0:00:18]} Bc3 $1 {[%emt 0:08:48][%cal Be1c3,Bc3a5,Ba5b6,Bb6c7][%mdl 32]} 23. Qxc6 {[%emt 0:03:35][%cal Oh3e6]} Qxa2 {[%emt 0:01:12][%cal Oc3d4]} 24. Qd7 {[%emt 0:05:37] Against Bd4} Qc2 {[%emt 0:05:17]} 25. c6 {[%emt 0:03:24]} Ba5 {[%emt 0:00:06] ...Rd8 is the strong threat.} 26. Bxe6 $1 {[%emt 0:05:37]} Qe2 {[%emt 0:03:50]} (26... Bb6 $11 27. Rd2 Qb1+ 28. Rd1 Qc2) 27. Bb3 $14 {[%emt 0:02:53] aiming for c7.} Bb6 {[%emt 0:03:09]} 28. Rf1 {[%emt 0:00:38] Active counter play!} (28. Rd2 $14 Qxf3 29. Bd5) 28... Qxf3 $11 {[%emt 0:01:05]} 29. c7 {[%emt 0:01:01]} Bxc7 $1 {[%emt 0:00:36] Weighted Error Value: White=0.12 (very precise) /Black=0.13 (very precise)} 1/2-1/2

[Event "31st Kavala Open-A 2022"]
[Site "Kavala"]
[Date "2022.07.30"]
[Round "6.3"]
[White "Bharath Subramaniyam H"]
[Black "Halkias, Stelios"]
[Result "1-0"]
[ECO "B13"]
[WhiteElo "2479"]
[BlackElo "2512"]
[Annotator "TA"]
[PlyCount "79"]
[EventDate "2022.07.27"]
[EventType "swiss"]
[EventCountry "GRE"]
[SourceTitle "playchess.com"]
[Source "ChessBase"]
[SourceQuality "1"]
[TimeControl "40/5400+30:1800+30"]

{[%evp 9,79,10,10,13,16,10,24,4,17,-20,-10,-19,18,14,25,22,32,16,27,14,32,4,6,8,33,16,18,16,14,8,50,56,75,56,39,38,35,22,10,34,32,19,160,94,152,53,184,19,95,64,73,79,83,91,144,142,299,301,399,218,289,150,287,295,422,410,444,434,498,492,1162,1025]} 1. e4 {[%emt 0:00:23]} c6 {[%emt 0:02:44]} 2. d4 {[%emt 0:04:39]} d5 {[%emt 0:00:11]} 3. exd5 {[%emt 0:08:27]} cxd5 {[%emt 0:00:44]} 4. Nf3 {[%emt 0:00:12]} Nc6 {[%emt 0:01:56]} 5. Bb5 {[%emt 0:02:22]} e6 {[%emt 0:10:46]} 6. O-O {[%emt 0:03:34] B13: Caro-Kann: Exchange Variation and Panov-Botvinnik Attack.} Bd6 {[%emt 0:03:04]} 7. c4 {[%emt 0:17:30]} Nge7 {[%emt 0:08:27]} 8. Nc3 {[%emt 0:04:31] White has an edge.} O-O {[%emt 0:01:12] [#]} (8... a6 $5 {[%cal Ra6b5]} 9. Bxc6+ bxc6 $11) 9. Bg5 $146 {[%emt 0:18:24][%cal Bc1g5,Bg5h4,Bh4g3][%mdl 32]} ({Predecessor:} 9. c5 Bc7 10. a3 e5 11. Bxc6 Nxc6 12. dxe5 d4 13. Nb5 Bg4 14. Nbxd4 Nxe5 15. h3 {½-½ (60) Karjakin,S (2753)-Mamedyarov,S (2817) St Petersburg 2018}) 9... f6 {[%emt 0:02:40]} 10. Bh4 {[%emt 0:00:00]} Kh8 {[%emt 0:06:09]} 11. Bg3 {[%emt 0:08:16]} a6 {[%emt 0:09:57]} 12. Bxc6 {[%emt 0:06:41]} bxc6 {[%emt 0:01:56]} 13. Re1 {[%emt 0:03:56]} Nf5 {[%emt 0:18:14]} 14. Bxd6 {[%emt 0:00:00]} Qxd6 {[%emt 0:02:01]} 15. Rc1 {[%emt 0:00:00]} (15. c5 $5 {[%cal Rc5d6]} Qc7 16. h3 $11) 15... g5 {[%emt 0:04:11]} 16. Ne2 {[%emt 0:00:00][%cal Bc3e2,Be2g3,Bg3e4,Be4c5,Bc5a6][%mdl 32]} Bd7 {[%emt 0:06:09]} 17. Nd2 {[%emt 0:05:43]} e5 {[%emt 0:08:28]} 18. dxe5 {[%emt 0:05:15]} fxe5 {[%emt 0:00:27]} 19. Ng3 {[%emt 0:01:14]} Nd4 {[%emt 0:01:28]} 20. Nb3 $1 {[%emt 0:03:57]} Nxb3 {[%emt 0:04:46]} 21. Qxb3 {[%emt 0:00:58]} Rab8 {[%emt 0:00:52]} 22. Qc2 {[%emt 0:01:27]} d4 {[%emt 0:00:44]} 23. Ne4 {[%emt 0:00:37]} Qg6 {[%emt 0:00:14]} 24. Nc5 {[%emt 0:00:42]} Bf5 {[%emt 0:00:32]} 25. Qd2 {[%emt 0:00:01]} Rfe8 {[%emt 0:01:31]} (25... Qd6 $11 26. Nxa6 Ra8) 26. Nxa6 $16 {[%emt 0:01:21]} Rbd8 {[%emt 0:00:01]} 27. a4 {[%emt 0:00:44]} (27. b4 $16) 27... h5 {[%emt 0:01:15]} (27... Rd6 $1 $14) 28. Qa5 $2 {[%emt 0:01:19]} (28. b4 $18) 28... Qd6 {[%emt 0:03:09]} (28... e4 $1 $11) 29. Qc5 {[%emt 0:01:55]} Qf6 {[%emt 0:00:18]} 30. Nb4 {[%emt 0:00:09]} d3 {[%emt 0:00:48] ...d2 is the strong threat.} 31. Rcd1 {[%emt 0:00:35]} (31. Qxc6 $2 Re6 32. Qf3 d2 33. Qxh5+ Qh6 $19) (31. Nxc6 Rc8 32. Qe3 Rxc6 $17) 31... e4 {[%emt 0:00:31]} (31... d2 $2 32. Re2 $18) (31... Re6 $142) 32. Qxc6 {[%emt 0:01:04]} ({Inferior is} 32. Nxc6 Rc8 33. Qd5 (33. g4 $2 Bxg4 34. Qd4 Qxd4 $19) 33... Rxc6 34. Rxd3 exd3 $17) 32... Qxb2 {[%emt 0:00:28] [#]} (32... Qxc6 $16 33. Nxc6 Rd6) 33. Nxd3 $1 $18 {[%emt 0:00:26][%mdl 512]} Qc3 {[%emt 0:00:31] [#]} (33... Qd4 34. Qh6+) 34. Rc1 {[%emt 0:00:23]} Qd4 {[%emt 0:00:22]} 35. Qc5 {[%emt 0:00:21]} ({White should play} 35. Nb4 $18 {And now Qh6+ would win.} Re6 36. Qb5) 35... Qf6 {[%emt 0:00:42]} (35... Qxc5 $16 {was worth a try.} 36. Nxc5 Re5) 36. Nb4 {[%emt 0:00:01]} Rc8 {[%emt 0:00:30]} (36... Qf8 $142 37. Qxf8+ Rxf8) 37. Qe3 {[%emt 0:00:14]} Qe5 {[%emt 0:00:33]} 38. Qxg5 {[%emt 0:00:20] White is clearly winning.} Rc7 {[%emt 0:00:19]} 39. Nd3 {[%emt 0:00:21]} Qa5 {[%emt 0:00:34]} (39... Qe6 $142 40. Nf4 Qe5 41. Nxh5 Bh7) 40. Qxh5+ {[%emt 0:00:00] Weighted Error Value: White=0.23 (precise) /Black=0.46} 1-0

[Event "31st Kavala Open-A 2022"]
[Site "Kavala"]
[Date "2022.07.30"]
[Round "6.4"]
[White "Can, Isik"]
[Black "Gopal G.N."]
[Result "1/2-1/2"]
[ECO "B97"]
[WhiteElo "2445"]
[BlackElo "2593"]
[Annotator "TA"]
[PlyCount "69"]
[EventDate "2022.07.27"]
[EventType "swiss"]
[EventCountry "GRE"]
[SourceTitle "playchess.com"]
[Source "ChessBase"]
[SourceQuality "1"]
[TimeControl "40/5400+30:1800+30"]

{[%evp 20,69,0,-11,0,0,0,0,0,0,0,0,0,0,-9,0,0,0,0,0,0,-20,0,-10,-2,-89,-56,-71,-81,-91,0,0,0,0,0,0,0,0,0,0,0,0,0,0,0,0,0,0,0,0,0,0]} 1. e4 {[%emt 0:00:48]} c5 {[%emt 0:00:05]} 2. Nf3 {[%emt 0:00:05]} d6 {[%emt 0:00:10]} 3. d4 {[%emt 0:00:03]} cxd4 {[%emt 0:00:05]} 4. Nxd4 {[%emt 0:00:03]} Nf6 {[%emt 0:00:04]} 5. Nc3 {[%emt 0:00:04]} a6 {[%emt 0:00:05]} 6. Bg5 {[%emt 0:00:03]} e6 {[%emt 0:00:34]} 7. f4 {[%emt 0:00:04]} h6 {[%emt 0:00:36]} 8. Bh4 {[%emt 0:00:11]} Qb6 {[%emt 0:00:09]} 9. Qd2 {[%emt 0:00:08]} Qxb2 {[%emt 0:01:06]} 10. Rb1 {[%emt 0:00:04]} Qa3 {[%emt 0:00:05]} 11. e5 {[%emt 0:00:32]} dxe5 {[%emt 0:00:21] B97: Sicilian Najdorf: Poisoned Pawn.} 12. fxe5 {[%emt 0:00:05]} Nfd7 {[%emt 0:00:51]} 13. Ne4 $1 {[%emt 0:01:06] Be2 is the strong threat.} Qxa2 {[%emt 0:01:34]} 14. Rd1 {[%emt 0:00:04] Black must now prevent Be2.} (14. Nc3 $2 Qa5 15. Be2 Nxe5 $19) 14... Qd5 {[%emt 0:01:46]} 15. Qe3 {[%emt 0:00:16]} Qxe5 {[%emt 0:01:03] aiming for ...Bb4+.} (15... Nxe5 $2 16. Nb3 Qxd1+ 17. Kxd1 $18) 16. Be2 {[%emt 0:00:18]} Bc5 {[%emt 0:01:56] Threatens to win with ...Bb6.} 17. Bg3 {[%emt 0:00:04]} Qd5 {[%emt 0:01:26] Strongly threatening ...Nc6.} 18. c4 {[%emt 0:02:25]} Bxd4 {[%emt 0:01:44]} 19. Rxd4 {[%emt 0:00:08]} Qa5+ {[%emt 0:00:04]} 20. Rd2 $1 {[%emt 0:00:14] Hoping for Nd6+.} O-O $1 {[%emt 0:00:49] next ...f5 is good for Black.} 21. Bd6 $1 {[%emt 0:03:16]} (21. O-O f5 22. Nd6 Qc5 23. Qxc5 Nxc5 $17) 21... f5 $1 {[%emt 0:00:42][%mdl 4] is now more promising than 21...Rd8.} 22. Nc3 {[%emt 0:52:30] [#]} (22. Bxf8 $11 {keeps the balance.} Nxf8 23. Nd6) 22... Rf6 $146 {[%emt 0:25:39]} ({Predecessor:} 22... Nf6 23. Bxf8 Kxf8 24. O-O Nbd7 25. g4 Qe5 26. Qxe5 Nxe5 27. gxf5 exf5 28. Nd5 Bd7 {1-0 (57) Sutovsky,E (2633)-Keymer,V (2491) Douglas 2018}) 23. O-O {[%emt 0:15:10]} Nc6 {[%emt 0:07:03]} 24. Kh1 {[%emt 0:09:09]} f4 {[%emt 0:19:37]} (24... Kh8 $17 25. c5 e5) 25. Rxf4 $11 {[%emt 0:03:13] The position is equal.} Rxf4 {[%emt 0:10:05]} 26. Bxf4 {[%emt 0:00:17] A strong pair of Bishops.} Nf6 {[%emt 0:02:58]} 27. c5 {[%emt 0:09:04]} Bd7 {[%emt 0:05:04]} 28. Bxh6 $1 {[%emt 0:00:07]} gxh6 {[%emt 0:13:52]} 29. Rxd7 $1 {[%emt 0:00:05][%mdl 64] Remove Defender, Decoy} Nxd7 {[%emt 0:00:07]} 30. Qxe6+ {[%emt 0:00:05]} Kg7 $1 {[%emt 0:01:11]} (30... Kf8 31. Qxh6+ Kf7 32. Bc4+ Ke8 33. Qh5+ Kd8 34. Qh8+) 31. Qxd7+ {[%emt 0:00:09]} Kf8 $1 {[%emt 0:01:00]} (31... Kh8 $2 32. Bd3 $1 (32. Qxb7 $2 Rb8 $19) 32... Qa1+ 33. Bb1 $18) 32. Qd6+ {[%emt 0:03:55]} (32. Qxb7 $2 Re8 $1 33. Qb2 (33. Qxc6 $2 Qa1+ 34. Nd1 Qxd1+ 35. Bxd1 Re1#) 33... Re3 $19) 32... Kg7 {[%emt 0:00:35]} 33. Qd7+ {[%emt 0:00:27]} Kf8 $1 {[%emt 0:00:35]} (33... Kh8 $2 34. Bd3 $1 (34. Qxb7 $2 Rb8 $19) 34... Qa1+ 35. Bb1 $18) 34. Qf5+ {[%emt 0:01:57]} ({Avoid the trap} 34. Qxb7 $2 {[#]} Re8 $1 35. Qb2 (35. Qxc6 $2 {leads to mate.} Qa1+ 36. Nd1 Qxd1+ 37. Bxd1 Re1#) 35... Re3 $19) 34... Kg7 {[%emt 0:01:28]} 35. Qd7+ $1 {[%emt 0:00:36] Weighted Error Value: White=0.07 (flawless) /Black=0.03 (flawless)} 1/2-1/2